fUSD/lending_fUSD_20260528
["ID","MTS","AMOUNT","RATE_DAILY","PERIOD"]
[423180974,1779909041000,-501.4576724,0.00020488,2]
[423180972,1779909041000,-29192.41348934,0.00020381,2]
[423180971,1779909041000,-993.2,0.00020381,2]
[423180967,1779909041000,-301.0,0.0002,2]
[423180969,1779909041000,-400.0,0.0002,2]
[423180973,1779909041000,-12158.18453656,0.00020429,2]
[423181027,1779909043000,-6453.0,0.00021413,2]
[423181021,1779909043000,-302.639205,0.00021264,2]
[423181026,1779909043000,-831.51979762,0.00021374,2]
[423181024,1779909043000,-1407.64099139,0.000213,2]
[423181023,1779909043000,-694.89044229,0.000213,2]
[423181016,1779909043000,-134.29382004,0.000211,2]
[423181020,1779909043000,-150.9134413,0.00021264,2]
[423181018,1779909043000,-745.65223615,0.00021209,2]
[423181019,1779909043000,-628.71,0.00021241,2]
[423181017,1779909043000,-719.04747942,0.00021154,2]
[423181028,1779909043000,-862.28603014,0.00021429,2]
[423181022,1779909043000,-319.68872259,0.00021264,2]
[423181030,1779909043000,-694.89044229,0.000215,2]
[423181025,1779909043000,-801.85129954,0.00021319,2]
[423181034,1779909043000,-961.58486558,0.00021594,2]
[423181033,1779909043000,-3620.0,0.00021568,2]
[423181043,1779909043000,-2000.0,0.000218,2]
[423181042,1779909043000,-781.13960192,0.00021796,2]
[423181041,1779909043000,-628.71,0.00021772,2]
[423181038,1779909043000,-200.0,0.00021647,2]
[423181040,1779909043000,-195.48038086,0.00021726,2]
[423181039,1779909043000,-997.16350561,0.00021649,2]
[423181031,1779909043000,-1407.64099139,0.000215,2]
[423181035,1779909043000,-2157.14243826,0.00021647,2]
[423181032,1779909043000,-927.27566594,0.00021539,2]
[423181044,1779909043000,-17085.5780595,0.00021832,2]
[423181029,1779909043000,-894.19061325,0.00021484,2]
[423181036,1779909043000,-1481.2378076,0.00021647,2]
[423181037,1779909043000,-181.08010149,0.00021647,2]
[423181048,1779909045000,-2500.0,0.00013198,2]
[423181049,1779909045000,-5286.59016287,0.00021832,2]
[423181050,1779909045000,-314.55,0.00021832,2]
[423181054,1779909045000,-5000.0,0.00021918,2]
[423181052,1779909045000,-3000.0,0.000219,7]
[423181053,1779909045000,-2000.0,0.00021913,2]
[423181055,1779909045000,-303.0,0.00022,2]
[423181051,1779909045000,-316701.19546553,0.00021832,2]
[423181069,1779909046000,-1536.04360648,0.00022195,2]
[423181075,1779909046000,-993.2,0.00022353,2]
[423181072,1779909046000,-200.0,0.00022276,2]
[423181074,1779909046000,-15691.9093254,0.00022327,2]
[423181076,1779909046000,-389.09621379,0.00022366,2]
[423181056,1779909046000,-268.0,0.00022,2]
[423181071,1779909046000,-200.0,0.00022195,2]
[423181073,1779909046000,-628.71,0.00022303,2]
[423181070,1779909046000,-187.78006524,0.00022195,2]
[423181067,1779909046000,-212.13,0.00022,2]
[423181057,1779909046000,-283.0,0.00022,2]
[423181065,1779909046000,-450.0,0.00022,2]
[423181066,1779909046000,-212.45574764,0.00022,3]
[423181063,1779909046000,-480.0,0.00022,2]
[423181064,1779909046000,-301.0,0.00022,2]
[423181061,1779909046000,-317.0,0.00022,2]
[423181060,1779909046000,-511.0,0.00022,2]
[423181062,1779909046000,-290.0,0.00022,2]
[423181058,1779909046000,-540.0,0.00022,2]
[423181059,1779909046000,-229.0,0.00022,2]
[423181077,1779909046000,-46247.84946388,0.00022395,2]
[423181068,1779909046000,-2236.95670847,0.00022195,2]
[423181078,1779909046000,-314.3142587,0.00022405,2]
[423181085,1779909046000,-500.0,0.00022405,2]
[423181079,1779909046000,-500.0,0.00022405,2]
[423181080,1779909046000,-500.0,0.00022405,2]
[423181101,1779909046000,-427.82499963,0.00022406,2]
[423181102,1779909046000,-310.546,0.00022406,2]
[423181099,1779909046000,-1863.47082726,0.00022406,2]
[423181100,1779909046000,-399.48050875,0.00022406,2]
[423181096,1779909046000,-3681.20793802,0.00022406,2]
[423181095,1779909046000,-452.86459712,0.00022406,2]
[423181097,1779909046000,-910.07126,0.00022406,2]
[423181091,1779909046000,-5737.0,0.00022406,5]
[423181094,1779909046000,-69366.16289855,0.00022406,2]
[423181098,1779909046000,-372.01050113,0.00022406,2]
[423181092,1779909046000,-85333.13848877,0.00022406,2]
[423181093,1779909046000,-4549.72390367,0.00022406,2]
[423181081,1779909046000,-500.0,0.00022405,2]
[423181083,1779909046000,-549.42,0.00022405,2]
[423181084,1779909046000,-549.42,0.00022405,2]
[423181082,1779909046000,-549.42,0.00022405,2]
[423181086,1779909046000,-500.0,0.00022405,2]
[423181088,1779909046000,-513.45,0.00022405,2]
[423181089,1779909046000,-513.45,0.00022405,2]
[423181090,1779909046000,-513.45,0.00022405,2]
[423181087,1779909046000,-500.0,0.00022405,2]
[423181111,1779909309000,-150.0,0.00012802,2]
[423181112,1779909321000,-244.72441208,0.00012802,2]
[423181113,1779909362000,-252.14030334,0.00012802,2]
[423181114,1779909416000,-152.49798758,0.00013098,2]
[423181115,1779909424000,1174.33,0.00028082,120]
[423181116,1779909469000,-195.3636,0.00012702,2]
[423181117,1779909522000,-406.4562,0.00013098,2]
[423181118,1779909576000,-4089.69924771,0.000103,2]
[423181119,1779909629000,-5209.4,0.00013,2]
[423181120,1779909649000,-470.40076151,0.00013,2]
[423181121,1779909659000,193.58,0.00027474,120]
[423181122,1779909702000,-215.99629491,0.00013029,2]
[423181124,1779909756000,-271.46063294,0.000107,2]
[423181125,1779909971000,500.0,0.00027399,120]
[423181126,1779909972000,500.0,0.00027672,120]
[423181127,1779909972000,500.0,0.00028023,120]
[423181128,1779909985000,158.81,6.57e-05,2]
[423181130,1779910140000,1000.0,0.00028081,120]
[423181132,1779910145000,-1200.0,0.00010699,2]
[423181131,1779910145000,-215.9962949,0.00010599,2]
[423181133,1779910145000,-1200.0,0.00010699,2]
[423181134,1779910145000,-300.0,0.00010699,2]
[423181137,1779910145000,-567.06680173,0.00010699,2]
[423181135,1779910145000,-300.0,0.00010699,2]
[423181136,1779910145000,-349.0,0.00010699,2]
[423181138,1779910145000,-16105.13667397,0.000107,2]
[423181140,1779910150000,-152.0,0.00010806,2]
[423181141,1779910150000,-244.72441208,0.00011517,2]
[423181139,1779910150000,-10209.58409343,0.000107,2]
[423181142,1779910150000,-1200.0,0.00011761,2]
[423181145,1779910150000,-2351.0,0.00012946,2]
[423181144,1779910150000,-1680.0,0.00011769,2]
[423181143,1779910150000,-300.0,0.00011761,2]
[423181148,1779910150000,-150.0,0.00013197,2]
[423181150,1779910150000,-11418.3224,0.00013198,2]
[423181149,1779910150000,-1931.8376,0.00013198,2]
[423181151,1779910150000,-204.52,0.00013238,2]
[423181152,1779910150000,-3857.7148,0.00013267,2]
[423181153,1779910150000,-4314.18263132,0.00013321,2]
[423181146,1779910150000,-227.0,0.00013089,2]
[423181147,1779910150000,-2225.22114317,0.00013089,2]
[423181154,1779910167000,-1819.06713737,0.00013321,2]
[423181155,1779910170000,-15000.55823766,0.00013267,2]
[423181161,1779910231000,-258.43011103,0.00013266,2]
[423181163,1779910231000,-304.32648541,0.00013267,2]
[423181159,1779910231000,-150.0,0.00013266,2]
[423181162,1779910231000,-409.70699896,0.00013267,2]
[423181160,1779910231000,-281.86289001,0.00013266,2]
[423181158,1779910231000,-1200.0,0.00013266,2]
[423181165,1779910232000,-4629.01199152,0.00013267,2]
[423181164,1779910232000,-117689.98117998,0.00013267,2]
[423181168,1779910238000,-337.69617652,0.00013267,2]
[423181226,1779910242000,-1875.14979928,0.00013267,2]
[423181223,1779910242000,-35274.85020072,0.00013267,2]
[423181205,1779910242000,-2712.22,0.00013267,2]
[423181203,1779910242000,-6074.34641932,0.00013267,2]
[423181170,1779910242000,-2766.13362946,0.00013267,2]
[423181375,1779910243000,-6274.52023131,0.00013321,2]
[423181377,1779910243000,-5513.0,0.00013359,2]
[423181379,1779910243000,-160.0,0.00013462,2]
[423181381,1779910243000,-208.97895572,0.00013462,2]
[423181373,1779910243000,-17600.48878117,0.00013267,2]
[423181389,1779910243000,-365.87,0.00013588,2]
[423181383,1779910243000,-2000.0,0.00013503,2]
[423181387,1779910243000,-1669.57746777,0.00013588,2]
[423181391,1779910243000,-2746.79451134,0.00013588,2]
[423181394,1779910243000,-785.92833802,0.00013588,2]
[423181385,1779910243000,-215.46156935,0.00013558,2]
[423181947,1779910247000,-200.0,0.00013633,2]
[423181945,1779910247000,-299.99,0.00013588,2]
[423181952,1779910247000,-999.99,0.00013688,2]
[423181943,1779910247000,-21467.26715064,0.00013588,2]
[423181941,1779910247000,-151.0,0.000135,2]
[423181954,1779910247000,-150.99,0.00013698,2]
[423181949,1779910247000,-9999.99,0.00013688,2]
[423182054,1779910248000,-442.0,0.0001466,2]
[423182038,1779910248000,-442.0,0.0001466,2]
[423182044,1779910248000,-442.0,0.0001466,2]
[423182042,1779910248000,-442.0,0.0001466,2]
[423182046,1779910248000,-500.0,0.0001466,2]
[423182040,1779910248000,-500.0,0.0001466,2]
[423182032,1779910248000,-500.0,0.0001466,2]
[423182033,1779910248000,-442.0,0.0001466,2]
[423182029,1779910248000,-500.0,0.0001466,2]
[423182027,1779910248000,-500.0,0.0001466,2]
[423182014,1779910248000,-500.0,0.0001466,2]
[423182010,1779910248000,-500.0,0.0001466,2]
[423182036,1779910248000,-500.0,0.0001466,2]
[423182048,1779910248000,-442.0,0.0001466,2]
[423182071,1779910248000,-442.0,0.0001466,2]
[423182056,1779910248000,-442.0,0.0001466,2]
[423182061,1779910248000,-442.0,0.0001466,2]
[423182063,1779910248000,-500.0,0.0001466,2]
[423182069,1779910248000,-442.0,0.0001466,2]
[423182067,1779910248000,-442.0,0.0001466,2]
[423182065,1779910248000,-442.0,0.0001466,2]
[423182059,1779910248000,-442.0,0.0001466,2]
[423182077,1779910248000,-442.0,0.0001466,2]
[423182073,1779910248000,-500.0,0.0001466,2]
[423182075,1779910248000,-442.0,0.0001466,2]
[423182012,1779910248000,-500.0,0.0001466,2]
[423182080,1779910248000,-442.0,0.0001466,2]
[423182082,1779910248000,-321.79699444,0.0001466,2]
[423182050,1779910248000,-442.0,0.0001466,2]
[423182025,1779910248000,-500.0,0.0001466,2]
[423181983,1779910248000,-9313.94580799,0.0001456,2]
[423182024,1779910248000,-500.0,0.0001466,2]
[423181965,1779910248000,-353.36,0.00013698,2]
[423181956,1779910248000,-9999.99,0.00013698,2]
[423181967,1779910248000,-388.31486607,0.00013699,2]
[423181958,1779910248000,-9999.99,0.00013698,2]
[423181963,1779910248000,-9999.99,0.00013698,2]
[423181972,1779910248000,-2010.0,0.00013981,2]
[423181961,1779910248000,-4999.99,0.00013698,2]
[423181969,1779910248000,-150.0,0.00013852,2]
[423181974,1779910248000,-17573.29550114,0.0001399,2]
[423181976,1779910248000,-1008.09,0.00014006,2]
[423181979,1779910248000,-166.66,0.0001409,2]
[423181989,1779910248000,-500.0,0.0001466,2]
[423181991,1779910248000,-500.0,0.0001466,2]
[423182008,1779910248000,-500.0,0.0001466,2]
[423181987,1779910248000,-500.0,0.0001466,2]
[423181995,1779910248000,-500.0,0.0001466,2]
[423181981,1779910248000,-255.0,0.0001438,2]
[423181993,1779910248000,-500.0,0.0001466,2]
[423182084,1779910248000,-442.0,0.0001466,2]
[423181985,1779910248000,-1680.0,0.00014593,2]
[423181999,1779910248000,-542.77531095,0.0001466,2]
[423182002,1779910248000,-500.0,0.0001466,2]
[423182004,1779910248000,-500.0,0.0001466,2]
[423182006,1779910248000,-505.38918001,0.0001466,2]
[423182016,1779910248000,-500.0,0.0001466,2]
[423182018,1779910248000,-500.0,0.0001466,2]
[423182022,1779910248000,-500.0,0.0001466,2]
[423182020,1779910248000,-500.0,0.0001466,2]
[423181997,1779910248000,-500.0,0.0001466,2]
[423182086,1779910248000,-442.0,0.0001466,2]
[423182052,1779910248000,-500.0,0.0001466,2]
[423182096,1779910248000,-454.0,0.0001466,2]
[423182147,1779910248000,-563.0,0.00014706,2]
[423182143,1779910248000,-563.0,0.00014706,2]
[423182165,1779910248000,-563.0,0.00014706,2]
[423182145,1779910248000,-563.0,0.00014706,2]
[423182167,1779910248000,-563.0,0.00014706,2]
[423182180,1779910248000,-166.66,0.00014866,2]
[423182189,1779910248000,-366.16,0.00014934,2]
[423182175,1779910248000,-568.2243131,0.00014706,2]
[423182171,1779910248000,-563.0,0.00014706,2]
[423182169,1779910248000,-563.0,0.00014706,2]
[423182173,1779910248000,-563.0,0.00014706,2]
[423182177,1779910248000,-900.0,0.000148,5]
[423182191,1779910248000,-1034858.63207192,0.00015,2]
[423182182,1779910248000,-5000.0,0.000149,2]
[423182186,1779910248000,-2500.0,0.000149,2]
[423182184,1779910248000,-1900.0,0.000149,5]
[423182193,1779910248000,-12691.57802008,0.00015091,2]
[423182197,1779910248000,-558.20397708,0.00015432,2]
[423182195,1779910248000,-2000.0,0.00015191,2]
[423182205,1779910248000,-500.0,0.00015591,2]
[423182209,1779910248000,-500.0,0.00015591,2]
[423182201,1779910248000,-500.0,0.00015591,2]
[423182203,1779910248000,-500.0,0.00015591,2]
[423182199,1779910248000,-433.0,0.00015588,2]
[423182207,1779910248000,-500.0,0.00015591,2]
[423182213,1779910248000,-500.0,0.00015591,2]
[423182211,1779910248000,-500.0,0.00015591,2]
[423182094,1779910248000,-442.0,0.0001466,2]
[423182214,1779910248000,-500.0,0.00015591,2]
[423182163,1779910248000,-563.0,0.00014706,2]
[423182159,1779910248000,-563.0,0.00014706,2]
[423182217,1779910248000,-500.0,0.00015591,2]
[423182155,1779910248000,-563.0,0.00014706,2]
[423182161,1779910248000,-563.0,0.00014706,2]
[423182088,1779910248000,-442.0,0.0001466,2]
[423182101,1779910248000,-500.0,0.00014706,2]
[423182092,1779910248000,-442.0,0.0001466,2]
[423182105,1779910248000,-500.0,0.00014706,2]
[423182103,1779910248000,-500.0,0.00014706,2]
[423182107,1779910248000,-500.0,0.00014706,2]
[423182109,1779910248000,-500.0,0.00014706,2]
[423182115,1779910248000,-500.0,0.00014706,2]
[423182113,1779910248000,-500.0,0.00014706,2]
[423182123,1779910248000,-535.00278977,0.00014706,2]
[423182111,1779910248000,-500.0,0.00014706,2]
[423182117,1779910248000,-500.0,0.00014706,2]
[423182125,1779910248000,-150.0,0.00014706,2]
[423182090,1779910248000,-442.0,0.0001466,2]
[423182127,1779910248000,-563.0,0.00014706,2]
[423182141,1779910248000,-563.0,0.00014706,2]
[423182129,1779910248000,-172.02329996,0.00014706,2]
[423182157,1779910248000,-563.0,0.00014706,2]
[423182151,1779910248000,-563.0,0.00014706,2]
[423182149,1779910248000,-563.0,0.00014706,2]
[423182139,1779910248000,-563.0,0.00014706,2]
[423182153,1779910248000,-563.0,0.00014706,2]
[423182135,1779910248000,-563.0,0.00014706,2]
[423182119,1779910248000,-500.0,0.00014706,2]
[423182131,1779910248000,-563.0,0.00014706,2]
[423182121,1779910248000,-500.0,0.00014706,2]
[423182133,1779910248000,-563.0,0.00014706,2]
[423182137,1779910248000,-563.0,0.00014706,2]
[423182295,1779910249000,-500.0,0.00015591,2]
[423182299,1779910249000,-500.0,0.00015591,2]
[423182312,1779910249000,-500.0,0.00015591,2]
[423182297,1779910249000,-500.0,0.00015591,2]
[423182291,1779910249000,-500.0,0.00015591,2]
[423182308,1779910249000,-500.0,0.00015591,2]
[423182284,1779910249000,-150.0,0.00015591,2]
[423182293,1779910249000,-500.0,0.00015591,2]
[423182286,1779910249000,-605.08657831,0.00015591,2]
[423182317,1779910249000,-150.0,0.00015591,2]
[423182310,1779910249000,-500.0,0.00015591,2]
[423182289,1779910249000,-500.0,0.00015591,2]
[423182306,1779910249000,-500.0,0.00015591,2]
[423182316,1779910249000,-531.57193254,0.00015591,2]
[423182302,1779910249000,-500.0,0.00015591,2]
[423182304,1779910249000,-500.0,0.00015591,2]
[423182318,1779910249000,-166.66,0.00015641,2]
[423182320,1779910249000,-500.0,0.00015765,2]
[423182319,1779910249000,-267.88170662,0.00015765,2]
[423182337,1779910249000,-500.0,0.00015765,2]
[423182333,1779910249000,-500.0,0.00015765,2]
[423182325,1779910249000,-500.0,0.00015765,2]
[423182322,1779910249000,-500.0,0.00015765,2]
[423182331,1779910249000,-150.0,0.00015765,2]
[423182280,1779910249000,-500.0,0.00015591,2]
[423182335,1779910249000,-500.0,0.00015765,2]
[423182315,1779910249000,-500.0,0.00015591,2]
[423182278,1779910249000,-500.0,0.00015591,2]
[423182262,1779910249000,-500.0,0.00015591,2]
[423182276,1779910249000,-506.81793186,0.00015591,2]
[423182327,1779910249000,-500.0,0.00015765,2]
[423182219,1779910249000,-500.0,0.00015591,2]
[423182221,1779910249000,-500.0,0.00015591,2]
[423182231,1779910249000,-500.0,0.00015591,2]
[423182234,1779910249000,-500.0,0.00015591,2]
[423182227,1779910249000,-500.0,0.00015591,2]
[423182238,1779910249000,-500.0,0.00015591,2]
[423182223,1779910249000,-500.0,0.00015591,2]
[423182236,1779910249000,-500.0,0.00015591,2]
[423182225,1779910249000,-500.0,0.00015591,2]
[423182240,1779910249000,-500.0,0.00015591,2]
[423182242,1779910249000,-500.0,0.00015591,2]
[423182229,1779910249000,-500.0,0.00015591,2]
[423182282,1779910249000,-500.0,0.00015591,2]
[423182244,1779910249000,-500.0,0.00015591,2]
[423182256,1779910249000,-500.0,0.00015591,2]
[423182260,1779910249000,-500.0,0.00015591,2]
[423182258,1779910249000,-500.0,0.00015591,2]
[423182252,1779910249000,-381.68311281,0.00015591,2]
[423182248,1779910249000,-500.0,0.00015591,2]
[423182254,1779910249000,-500.0,0.00015591,2]
[423182250,1779910249000,-500.0,0.00015591,2]
[423182264,1779910249000,-500.0,0.00015591,2]
[423182268,1779910249000,-500.0,0.00015591,2]
[423182270,1779910249000,-500.0,0.00015591,2]
[423182266,1779910249000,-500.0,0.00015591,2]
[423182272,1779910249000,-500.0,0.00015591,2]
[423182274,1779910249000,-500.0,0.00015591,2]
[423182246,1779910249000,-500.0,0.00015591,2]
[423182324,1779910249000,-500.0,0.00015765,2]
[423182314,1779910249000,-401.16619608,0.00015591,2]
[423182341,1779910249000,-244.82538177,0.00015765,2]
[423182407,1779910249000,-4609.0,0.00019423,2]
[423182403,1779910249000,-200.0,0.00019332,2]
[423182413,1779910249000,-500.0,0.00019726,2]
[423182405,1779910249000,-558.20397708,0.00019405,2]
[423182429,1779910249000,-500.0,0.00019726,2]
[423182417,1779910249000,-500.0,0.00019726,2]
[423182427,1779910249000,-150.0,0.00019726,2]
[423182419,1779910249000,-500.0,0.00019726,2]
[423182431,1779910249000,-402.19058266,0.00019726,2]
[423182432,1779910249000,-150.0,0.00019726,2]
[423182434,1779910249000,-500.0,0.00019726,2]
[423182423,1779910249000,-500.0,0.00019726,2]
[423182421,1779910249000,-500.0,0.00019726,2]
[423182438,1779910249000,-500.0,0.00019726,2]
[423182425,1779910249000,-500.0,0.00019726,2]
[423182436,1779910249000,-150.0,0.00019726,2]
[423182440,1779910249000,-622.5845227,0.00019726,2]
[423182442,1779910249000,-150.0,0.00019726,2]
[423182444,1779910249000,-500.0,0.00019726,2]
[423182446,1779910249000,-171.50846167,0.00019726,2]
[423182448,1779910249000,-500.0,0.00019726,2]
[423182450,1779910249000,-218.39893225,0.00019726,2]
[423182454,1779910249000,-500.0,0.00019726,2]
[423182452,1779910249000,-500.0,0.00019726,2]
[423182459,1779910249000,-150.0,0.00019726,2]
[423182457,1779910249000,-500.0,0.00019726,2]
[423182456,1779910249000,-500.0,0.00019726,2]
[423182411,1779910249000,-1008.09,0.00019608,2]
[423182415,1779910249000,-501.15990276,0.00019726,2]
[423182339,1779910249000,-150.0,0.00015765,2]
[423182395,1779910249000,-166.66,0.00018945,2]
[423182329,1779910249000,-500.0,0.00015765,2]
[423182343,1779910249000,-500.0,0.00015765,2]
[423182345,1779910249000,-150.0,0.00015765,2]
[423182356,1779910249000,-827.7,0.00016438,2]
[423182349,1779910249000,-150.0,0.00015765,2]
[423182358,1779910249000,-2000.0,0.00016879,2]
[423182347,1779910249000,-478.92004117,0.00015765,2]
[423182409,1779910249000,-12691.57802001,0.00019493,2]
[423182362,1779910249000,-166.66,0.00017141,2]
[423182366,1779910249000,-166.66,0.00017502,2]
[423182353,1779910249000,-2351.0,0.00016052,2]
[423182364,1779910249000,-12691.57802001,0.00017292,2]
[423182360,1779910249000,-736.0,0.00016901,2]
[423182354,1779910249000,-166.66,0.00016416,2]
[423182351,1779910249000,-152.7915746,0.00015765,2]
[423182373,1779910249000,-501.4576724,0.00017676,2]
[423182368,1779910249000,-340.59992535,0.0001753,2]
[423182393,1779910249000,-166.66,0.00018585,2]
[423182377,1779910249000,-9313.94580795,0.00017897,2]
[423182391,1779910249000,-2000.0,0.00018567,2]
[423182379,1779910249000,-240.46062582,0.00018,2]
[423182389,1779910249000,-9794.42,0.00018533,2]
[423182375,1779910249000,-166.66,0.00017863,2]
[423182385,1779910249000,-1252.0,0.00018321,2]
[423182370,1779910249000,-3292.0,0.00017657,2]
[423182381,1779910249000,-166.66,0.00018224,2]
[423182383,1779910249000,-193.58,0.00018316,2]
[423182372,1779910249000,-204.52,0.00017676,2]
[423182387,1779910249000,-827.7,0.0001841,2]
[423182552,1779910250000,-439.48495491,0.00019726,2]
[423182544,1779910250000,-500.0,0.00019726,2]
[423182556,1779910250000,-500.0,0.00019726,2]
[423182554,1779910250000,-500.0,0.00019726,2]
[423182542,1779910250000,-157.41168338,0.00019726,2]
[423182533,1779910250000,-500.0,0.00019726,2]
[423182537,1779910250000,-500.0,0.00019726,2]
[423182535,1779910250000,-150.0,0.00019726,2]
[423182525,1779910250000,-500.0,0.00019726,2]
[423182523,1779910250000,-500.0,0.00019726,2]
[423182526,1779910250000,-150.0,0.00019726,2]
[423182540,1779910250000,-184.48877466,0.00019726,2]
[423182550,1779910250000,-500.0,0.00019726,2]
[423182568,1779910250000,-500.0,0.00019726,2]
[423182548,1779910250000,-500.0,0.00019726,2]
[423182546,1779910250000,-500.0,0.00019726,2]
[423182560,1779910250000,-500.0,0.00019726,2]
[423182562,1779910250000,-500.0,0.00019726,2]
[423182564,1779910250000,-500.0,0.00019726,2]
[423182566,1779910250000,-1801.0,0.00019726,2]
[423182577,1779910250000,-1801.0,0.00019726,2]
[423182578,1779910250000,-500.0,0.00019726,2]
[423182580,1779910250000,-500.0,0.00019726,2]
[423182572,1779910250000,-500.0,0.00019726,2]
[423182583,1779910250000,-1801.0,0.00019726,2]
[423182570,1779910250000,-1801.0,0.00019726,2]
[423182531,1779910250000,-500.0,0.00019726,2]
[423182558,1779910250000,-500.0,0.00019726,2]
[423182529,1779910250000,-500.0,0.00019726,2]
[423182492,1779910250000,-500.0,0.00019726,2]
[423182519,1779910250000,-500.0,0.00019726,2]
[423182575,1779910250000,-500.0,0.00019726,2]
[423182466,1779910250000,-164.66146701,0.00019726,2]
[423182461,1779910250000,-150.0,0.00019726,2]
[423182480,1779910250000,-267.19449444,0.00019726,2]
[423182484,1779910250000,-500.0,0.00019726,2]
[423182467,1779910250000,-500.0,0.00019726,2]
[423182482,1779910250000,-500.0,0.00019726,2]
[423182486,1779910250000,-500.0,0.00019726,2]
[423182470,1779910250000,-150.0,0.00019726,2]
[423182472,1779910250000,-500.0,0.00019726,2]
[423182488,1779910250000,-172.95795463,0.00019726,2]
[423182478,1779910250000,-500.0,0.00019726,2]
[423182476,1779910250000,-180.65416299,0.00019726,2]
[423182474,1779910250000,-500.0,0.00019726,2]
[423182490,1779910250000,-500.0,0.00019726,2]
[423182502,1779910250000,-500.0,0.00019726,2]
[423182504,1779910250000,-500.0,0.00019726,2]
[423182510,1779910250000,-150.0,0.00019726,2]
[423182506,1779910250000,-500.0,0.00019726,2]
[423182508,1779910250000,-500.0,0.00019726,2]
[423182496,1779910250000,-500.0,0.00019726,2]
[423182512,1779910250000,-500.0,0.00019726,2]
[423182500,1779910250000,-500.0,0.00019726,2]
[423182494,1779910250000,-500.0,0.00019726,2]
[423182498,1779910250000,-500.0,0.00019726,2]
[423182515,1779910250000,-150.0,0.00019726,2]
[423182516,1779910250000,-500.0,0.00019726,2]
[423182521,1779910250000,-150.0,0.00019726,2]
[423182463,1779910250000,-500.0,0.00019726,2]
[423182585,1779910250000,-175.31166964,0.00019726,2]
[423182589,1779910250000,-1801.0,0.00019726,2]
[423182649,1779910250000,-578.20924308,0.0001985,2]
[423182647,1779910250000,-2996.0,0.00019728,5]
[423182654,1779910250000,-200.0,0.0001985,2]
[423182664,1779910250000,-157.54978746,0.0001985,2]
[423182666,1779910250000,-2129.0,0.00019859,2]
[423182651,1779910250000,-174.61919141,0.0001985,2]
[423182668,1779910250000,-259.39747586,0.000199,2]
[423182670,1779910250000,-719.04747942,0.00019905,2]
[423182681,1779910250000,-305.0,0.0002,2]
[423182683,1779910250000,-152.74589288,0.0002,2]
[423182685,1779910250000,-519.0,0.0002,2]
[423182679,1779910250000,-295.0,0.0002,2]
[423182689,1779910250000,-959.0,0.0002,2]
[423182674,1779910250000,-334.0,0.0002,2]
[423182676,1779910250000,-318.0,0.0002,2]
[423182672,1779910250000,-745.65223615,0.00019959,2]
[423182691,1779910250000,-206.0,0.0002,2]
[423182693,1779910250000,-486.0,0.0002,2]
[423182695,1779910250000,-301.0,0.0002,2]
[423182701,1779910250000,-286.0,0.0002,2]
[423182699,1779910250000,-1176.0,0.0002,2]
[423182703,1779910250000,-528.55874003,0.0002,2]
[423182707,1779910250000,-1006.0,0.0002,2]
[423182709,1779910250000,-653.0,0.0002,2]
[423182697,1779910250000,-275.0,0.0002,2]